[Event "*** Titled Tuesday Blitz"]
[Site "Chess.com"]
[Date "2020.05.12"]
[Round "4"]
[White "calin_dragomirescu"]
[Black "bmt011"]
[Result "0-1"]
[WhiteElo "2302"]
[BlackElo "2071"]
[TimeControl "180+1"]
[EndTime "10:39:24 PDT"]
[Termination "bmt011 won by resignation"]

1. Nf3 {[%clk 0:03:00.9]} 1... Nf6 {[%clk 0:02:58.9]} 2. c4 {[%clk 0:03:00.7]}
2... e6 {[%clk 0:02:59.1]} 3. g3 {[%clk 0:03:00.4]} 3... b6 {[%clk 0:02:52.5]}
4. Bg2 {[%clk 0:03:00.6]} 4... Bb7 {[%clk 0:02:52.5]} 5. O-O {[%clk 0:03:01.2]}
5... Be7 {[%clk 0:02:48.3]} 6. Nc3 {[%clk 0:03:01.7]} 6... d5 {[%clk 0:02:46.5]}
7. cxd5 {[%clk 0:03:00.7]} 7... Nxd5 {[%clk 0:02:45.2]} 8. d4 {[%clk 0:02:59.6]}
8... O-O {[%clk 0:02:42.8]} 9. Re1 {[%clk 0:02:59.4]} 9... Nd7 {[%clk
0:02:37.9]} 10. e4 {[%clk 0:02:58.2]} 10... Nxc3 {[%clk 0:02:37.6]} 11. bxc3
{[%clk 0:02:58.5]} 11... c5 {[%clk 0:02:38.1]} 12. Bf4 {[%clk 0:02:54.4]} 12...
Rc8 {[%clk 0:02:34.3]} 13. h4 {[%clk 0:02:53.6]} 13... Nf6 {[%clk 0:02:34.1]}
14. Ne5 {[%clk 0:02:44.7]} 14... cxd4 {[%clk 0:02:29.2]} 15. cxd4 {[%clk
0:02:43.9]} 15... Bb4 {[%clk 0:02:29.6]} 16. Re2 {[%clk 0:02:35.7]} 16... Bc3
{[%clk 0:02:29.6]} 17. Rc1 {[%clk 0:02:30.1]} 17... Qxd4 {[%clk 0:02:27.2]} 18.
Qxd4 {[%clk 0:02:21.3]} 18... Bxd4 {[%clk 0:02:26.4]} 19. Rxc8 {[%clk
0:02:07.9]} 19... Rxc8 {[%clk 0:02:27.3]} 20. Nd3 {[%clk 0:01:59.7]} 20... Ba6
{[%clk 0:02:22.2]} 21. Rd2 {[%clk 0:01:57.1]} 21... Bc3 {[%clk 0:02:11.1]} 22.
Rd1 {[%clk 0:01:55.5]} 22... Bc4 {[%clk 0:01:59.7]} 23. Nc1 {[%clk 0:01:41.2]}
23... Bb2 {[%clk 0:01:49.1]} 24. Nb3 {[%clk 0:01:34]} 24... a5 {[%clk
0:01:46.2]} 25. Be3 {[%clk 0:01:26.3]} 25... a4 {[%clk 0:01:43.3]} 26. Nc1
{[%clk 0:01:24.8]} 26... b5 {[%clk 0:01:40]} 27. Bf1 {[%clk 0:01:12.3]} 27...
Bxf1 {[%clk 0:01:39.3]} 28. Kxf1 {[%clk 0:01:11.9]} 28... Bxc1 {[%clk 0:01:35]}
29. Bxc1 {[%clk 0:01:08.3]} 29... Nxe4 {[%clk 0:01:35.9]} 30. Be3 {[%clk
0:00:59.7]} 30... Nf6 {[%clk 0:01:36.8]} 31. Rb1 {[%clk 0:00:57.7]} 31... Ne4
{[%clk 0:01:37.7]} 32. Rxb5 {[%clk 0:00:54.5]} 32... Nc3 {[%clk 0:01:31.5]} 33.
Ra5 {[%clk 0:00:47.8]} 33... f6 {[%clk 0:01:25.3]} 34. Ra7 {[%clk 0:00:46.3]}
34... Nxa2 {[%clk 0:01:19.9]} 35. Rxa4 {[%clk 0:00:45.2]} 35... Nc3 {[%clk
0:01:20]} 36. Ra7 {[%clk 0:00:44.4]} 36... Nd5 {[%clk 0:01:20.5]} 37. Ke2 {[%clk
0:00:40.9]} 37... Rc7 {[%clk 0:01:19.1]} 38. Rxc7 {[%clk 0:00:39.5]} 38... Nxc7
{[%clk 0:01:19.1]} 39. f3 {[%clk 0:00:39.8]} 39... Kf7 {[%clk 0:01:19.2]} 40.
Kd3 {[%clk 0:00:39.7]} 40... e5 {[%clk 0:01:18.4]} 41. Bd2 {[%clk 0:00:39.4]}
41... Ke6 {[%clk 0:01:18.5]} 42. Ke2 {[%clk 0:00:39.2]} 42... Nd5 {[%clk
0:01:18.8]} 43. g4 {[%clk 0:00:39.2]} 43... Kd7 {[%clk 0:01:17.3]} 44. h5 {[%clk
0:00:39.3]} 44... g6 {[%clk 0:01:16.9]} 45. hxg6 {[%clk 0:00:38.7]} 45... hxg6
{[%clk 0:01:17.4]} 46. Kd3 {[%clk 0:00:38.9]} 46... Kc6 {[%clk 0:01:14.8]} 47.
Ke4 {[%clk 0:00:38.8]} 47... Kc5 {[%clk 0:01:13.7]} 48. g5 {[%clk 0:00:37.3]}
48... Kd6 {[%clk 0:01:08.8]} 49. gxf6 {[%clk 0:00:36.6]} 49... Nxf6+ {[%clk
0:01:09.3]} 50. Ke3 {[%clk 0:00:36.9]} 50... Kd5 {[%clk 0:01:09.7]} 51. Bc3
{[%clk 0:00:36.3]} 51... Nh5 {[%clk 0:01:09.2]} 52. Kf2 {[%clk 0:00:35]} 52...
Nf4 {[%clk 0:01:09.2]} 53. Bd2 {[%clk 0:00:35.1]} 53... Ke6 {[%clk 0:01:06]} 54.
Kg3 {[%clk 0:00:34.9]} 54... Kf5 {[%clk 0:01:06.5]} 55. Kf2 {[%clk 0:00:34.8]}
55... g5 {[%clk 0:01:05.3]} 56. Kg3 {[%clk 0:00:34.9]} 56... Nd3 {[%clk
0:01:04.8]} 57. Kg2 {[%clk 0:00:34.1]} 57... Nb2 {[%clk 0:01:03.6]} 58. Kg3
{[%clk 0:00:33.6]} 58... Nc4 {[%clk 0:01:04.1]} 59. Bc1 {[%clk 0:00:33.2]} 59...
Na5 {[%clk 0:00:57.5]} 60. Bd2 {[%clk 0:00:32.9]} 60... Nb3 {[%clk 0:00:57.9]}
61. Bc3 {[%clk 0:00:32.8]} 61... Nc5 {[%clk 0:00:57.5]} 62. Bd2 {[%clk
0:00:32.3]} 62... Nd3 {[%clk 0:00:57.5]} 63. Be3 {[%clk 0:00:32.1]} 63... Nf4
{[%clk 0:00:58]} 64. Bd2 {[%clk 0:00:31]} 64... Nh5+ {[%clk 0:00:58.4]} 65. Kf2
{[%clk 0:00:29.8]} 65... Nf6 {[%clk 0:00:53.5]} 66. Kg3 {[%clk 0:00:28.9]} 66...
e4 {[%clk 0:00:52.9]} 67. Kf2 {[%clk 0:00:26]} 67... g4 {[%clk 0:00:47.3]} 68.
fxe4+ {[%clk 0:00:25]} 68... Nxe4+ {[%clk 0:00:47.5]} 69. Ke2 {[%clk 0:00:23.2]}
69... Nxd2 {[%clk 0:00:48]} 70. Kxd2 {[%clk 0:00:23.5]} 70... Kf4 {[%clk
0:00:47]} 71. Ke2 {[%clk 0:00:23.8]} 71... Kg3 {[%clk 0:00:47.1]} 72. Kf1 {[%clk
0:00:23.9]} 72... Kh2 {[%clk 0:00:47.6]} 0-1

[Event "*** Titled Tuesday Blitz"]
[Site "Chess.com"]
[Date "2020.05.12"]
[Round "4"]
[White "Firehand33"]
[Black "RobertPrieb2007"]
[Result "1-0"]
[WhiteElo "2736"]
[BlackElo "2336"]
[TimeControl "180+1"]
[EndTime "10:39:26 PDT"]
[Termination "Firehand33 won by checkmate"]

1. Nf3 {[%clk 0:03:00.9]} 1... Nf6 {[%clk 0:02:59.2]} 2. g3 {[%clk 0:03:01.2]}
2... g6 {[%clk 0:02:59]} 3. Bg2 {[%clk 0:03:02.1]} 3... Bg7 {[%clk 0:02:57.9]}
4. b3 {[%clk 0:03:02.7]} 4... O-O {[%clk 0:02:56]} 5. Bb2 {[%clk 0:03:02.8]}
5... a6 {[%clk 0:02:52.5]} 6. c4 {[%clk 0:02:59.4]} 6... Nc6 {[%clk 0:02:52.2]}
7. O-O {[%clk 0:02:58.7]} 7... d5 {[%clk 0:02:49.1]} 8. cxd5 {[%clk 0:02:53.8]}
8... Nxd5 {[%clk 0:02:50]} 9. Bxg7 {[%clk 0:02:53.6]} 9... Kxg7 {[%clk
0:02:49.9]} 10. d4 {[%clk 0:02:49.3]} 10... Bf5 {[%clk 0:02:41]} 11. Re1 {[%clk
0:02:45.6]} 11... Bg4 {[%clk 0:02:27.6]} 12. h3 {[%clk 0:02:37.2]} 12... Bxf3
{[%clk 0:02:24.6]} 13. Bxf3 {[%clk 0:02:38.1]} 13... Qd6 {[%clk 0:02:20.9]} 14.
e3 {[%clk 0:02:28.3]} 14... e5 {[%clk 0:02:09.2]} 15. dxe5 {[%clk 0:02:21.2]}
15... Qxe5 {[%clk 0:02:08]} 16. Nd2 {[%clk 0:02:17.4]} 16... Nc3 {[%clk
0:01:59.4]} 17. Qc1 {[%clk 0:02:03.4]} 17... Nb4 {[%clk 0:01:58.7]} 18. Nc4
{[%clk 0:01:41.6]} 18... Qf6 {[%clk 0:01:54.2]} 19. Bxb7 {[%clk 0:01:41.5]}
19... Nd3 {[%clk 0:01:50.9]} 20. Qc2 {[%clk 0:01:32.8]} 20... Nxe1 {[%clk
0:01:47.9]} 21. Rxe1 {[%clk 0:01:32.7]} 21... Rad8 {[%clk 0:01:45.1]} 22. Bxa6
{[%clk 0:01:28.6]} 22... Ra8 {[%clk 0:01:42.9]} 23. Rc1 {[%clk 0:01:19.6]} 23...
Rxa6 {[%clk 0:01:42.5]} 24. Qxc3 {[%clk 0:01:19.7]} 24... Qxc3 {[%clk
0:01:37.9]} 25. Rxc3 {[%clk 0:01:20.6]} 25... Rxa2 {[%clk 0:01:38]} 26. Ne5
{[%clk 0:01:19.4]} 26... Ra1+ {[%clk 0:01:34.2]} 27. Kg2 {[%clk 0:01:18.8]}
27... Rc8 {[%clk 0:01:31.9]} 28. Rd3 {[%clk 0:01:16.7]} 28... Kf6 {[%clk
0:01:28.8]} 29. f4 {[%clk 0:01:16.5]} 29... Ke6 {[%clk 0:01:25.5]} 30. Rc3
{[%clk 0:01:15.2]} 30... f6 {[%clk 0:01:22.3]} 31. Nd3 {[%clk 0:01:08.7]} 31...
c6 {[%clk 0:01:17.9]} 32. Kf3 {[%clk 0:01:05.8]} 32... Rf1+ {[%clk 0:01:14.7]}
33. Ke2 {[%clk 0:01:02.1]} 33... Ra1 {[%clk 0:01:11.7]} 34. b4 {[%clk
0:00:55.4]} 34... Kd5 {[%clk 0:01:07.8]} 35. Rc5+ {[%clk 0:00:38.8]} 35... Kd6
{[%clk 0:01:03]} 36. e4 {[%clk 0:00:39.2]} 36... Ra2+ {[%clk 0:00:59.8]} 37. Ke3
{[%clk 0:00:38.9]} 37... Ra3 {[%clk 0:00:58.9]} 38. Kd4 {[%clk 0:00:36.4]} 38...
Rd8 {[%clk 0:00:56.2]} 39. Kc4 {[%clk 0:00:30.3]} 39... Ke7 {[%clk 0:00:50.3]}
40. Nf2 {[%clk 0:00:19.1]} 40... Rd2 {[%clk 0:00:50.4]} 41. Ng4 {[%clk
0:00:19.3]} 41... Rc2+ {[%clk 0:00:46.2]} 42. Kd4 {[%clk 0:00:19.6]} 42... Rxc5
{[%clk 0:00:46.3]} 43. Kxc5 {[%clk 0:00:20.5]} 43... Rxg3 {[%clk 0:00:41.3]} 44.
e5 {[%clk 0:00:18.7]} 44... f5 {[%clk 0:00:38.2]} 45. Nf6 {[%clk 0:00:18.8]}
45... Rxh3 {[%clk 0:00:37]} 46. Kxc6 {[%clk 0:00:18.9]} 46... Rc3+ {[%clk
0:00:33.4]} 47. Kb6 {[%clk 0:00:18.1]} 47... Rb3 {[%clk 0:00:30.4]} 48. b5
{[%clk 0:00:18.2]} 48... h5 {[%clk 0:00:27.9]} 49. Kc6 {[%clk 0:00:18.5]} 49...
h4 {[%clk 0:00:26.9]} 50. Nd5+ {[%clk 0:00:18.1]} 50... Kd8 {[%clk 0:00:17.3]}
51. b6 {[%clk 0:00:19]} 51... Rxb6+ {[%clk 0:00:16.5]} 52. Kxb6 {[%clk
0:00:13.2]} 52... h3 {[%clk 0:00:17.1]} 53. e6 {[%clk 0:00:12.3]} 53... h2
{[%clk 0:00:17]} 54. Kc6 {[%clk 0:00:12.1]} 54... Ke8 {[%clk 0:00:17.6]} 55. Kd6
{[%clk 0:00:13]} 55... h1=Q {[%clk 0:00:17.8]} 56. Nf6+ {[%clk 0:00:13.6]} 56...
Kf8 {[%clk 0:00:16.4]} 57. e7+ {[%clk 0:00:14.5]} 57... Kf7 {[%clk 0:00:16.7]}
58. e8=Q+ {[%clk 0:00:15.4]} 58... Kxf6 {[%clk 0:00:17.6]} 59. Qf8# {[%clk
0:00:15.9]} 1-0

[Event "*** Titled Tuesday Blitz"]
[Site "Chess.com"]
[Date "2020.05.12"]
[Round "4"]
[White "chessablanca"]
[Black "1977Ivan"]
[Result "1-0"]
[WhiteElo "2480"]
[BlackElo "2636"]
[TimeControl "180+1"]
[EndTime "10:39:26 PDT"]
[Termination "chessablanca won on time"]

1. Nf3 {[%clk 0:03:00.9]} 1... d6 {[%clk 0:02:59.7]} 2. g3 {[%clk 0:03:01]} 2...
e5 {[%clk 0:02:59.2]} 3. Bg2 {[%clk 0:03:00.1]} 3... f5 {[%clk 0:02:59.6]} 4. d3
{[%clk 0:02:59.8]} 4... Nf6 {[%clk 0:03:00.1]} 5. O-O {[%clk 0:02:59.7]} 5...
Be7 {[%clk 0:03:00.6]} 6. Nc3 {[%clk 0:02:58.2]} 6... O-O {[%clk 0:03:00.9]} 7.
e4 {[%clk 0:02:58.5]} 7... Nc6 {[%clk 0:02:41.7]} 8. exf5 {[%clk 0:02:40.1]}
8... Bxf5 {[%clk 0:02:40.1]} 9. d4 {[%clk 0:02:40.4]} 9... e4 {[%clk 0:02:32.1]}
10. Nh4 {[%clk 0:02:24]} 10... Bg4 {[%clk 0:02:20.5]} 11. f3 {[%clk 0:02:18.6]}
11... exf3 {[%clk 0:02:20.1]} 12. Bxf3 {[%clk 0:02:19.5]} 12... Bxf3 {[%clk
0:02:05.7]} 13. Nxf3 {[%clk 0:02:14.4]} 13... d5 {[%clk 0:01:57.3]} 14. Ne5
{[%clk 0:01:56.6]} 14... Bd6 {[%clk 0:01:44.4]} 15. Bf4 {[%clk 0:01:54.9]} 15...
Qe8 {[%clk 0:01:38.6]} 16. Re1 {[%clk 0:01:47.6]} 16... Rd8 {[%clk 0:01:30.5]}
17. Nb5 {[%clk 0:01:38.1]} 17... Bxe5 {[%clk 0:01:08.3]} 18. dxe5 {[%clk
0:01:29.8]} 18... Ne4 {[%clk 0:01:02.4]} 19. Nxc7 {[%clk 0:01:23]} 19... Qg6
{[%clk 0:01:02.4]} 20. Nxd5 {[%clk 0:00:58.8]} 20... Kh8 {[%clk 0:00:57.1]} 21.
Qf3 {[%clk 0:00:41.1]} 21... Ng5 {[%clk 0:00:36.1]} 22. Qg2 {[%clk 0:00:35.3]}
22... Nd4 {[%clk 0:00:26.6]} 23. Rf1 {[%clk 0:00:16.6]} 23... Nge6 {[%clk
0:00:18.7]} 24. Rac1 {[%clk 0:00:11.1]} 24... Qh5 {[%clk 0:00:15.1]} 25. Rf2
{[%clk 0:00:08.1]} 25... g5 {[%clk 0:00:11.5]} 26. Be3 {[%clk 0:00:07.5]} 26...
Rxf2 {[%clk 0:00:10.6]} 27. Bxf2 {[%clk 0:00:07.9]} 27... Nf3+ {[%clk
0:00:10.1]} 28. Kh1 {[%clk 0:00:08.2]} 28... g4 {[%clk 0:00:09.4]} 29. Ne3
{[%clk 0:00:07.6]} 29... Rd2 {[%clk 0:00:06.7]} 30. Rd1 {[%clk 0:00:07.9]} 30...
Rxd1+ {[%clk 0:00:06.2]} 31. Nxd1 {[%clk 0:00:08.8]} 31... Qxe5 {[%clk
0:00:06.4]} 32. Ne3 {[%clk 0:00:08.7]} 32... Qe4 {[%clk 0:00:05.9]} 33. Nf1
{[%clk 0:00:05.5]} 33... Ned4 {[%clk 0:00:05.6]} 34. Bxd4+ {[%clk 0:00:05.5]}
34... Qxd4 {[%clk 0:00:05.7]} 35. h3 {[%clk 0:00:05.2]} 35... h5 {[%clk
0:00:05.1]} 36. hxg4 {[%clk 0:00:05.4]} 36... hxg4 {[%clk 0:00:06]} 37. Nh2
{[%clk 0:00:05.6]} 37... Qd1+ {[%clk 0:00:05.3]} 38. Qf1 {[%clk 0:00:05.7]}
38... Qd5 {[%clk 0:00:01.1]} 39. Nxf3 {[%clk 0:00:05.6]} 39... gxf3 {[%clk
0:00:02]} 40. Qf2 {[%clk 0:00:01]} 40... Kg7 {[%clk 0:00:02.2]} 41. Kh2 {[%clk
0:00:01.9]} 41... Qh5+ {[%clk 0:00:02]} 42. Kg1 {[%clk 0:00:02.1]} 42... Qg4
{[%clk 0:00:02.6]} 43. Kh2 {[%clk 0:00:02.6]} 43... Qh5+ {[%clk 0:00:02.4]} 44.
Kg1 {[%clk 0:00:03.5]} 44... Qg4 {[%clk 0:00:03]} 45. Kh2 {[%clk 0:00:04.2]}
45... Kg6 {[%clk 0:00:03.5]} 46. Kg1 {[%clk 0:00:05.1]} 46... Qh5 {[%clk
0:00:03]} 47. Qh2 {[%clk 0:00:06]} 47... Qxh2+ {[%clk 0:00:01.2]} 48. Kxh2
{[%clk 0:00:06.9]} 48... Kg5 {[%clk 0:00:01.6]} 49. Kg1 {[%clk 0:00:06.5]} 1-0

[Event "*** Titled Tuesday Blitz"]
[Site "Chess.com"]
[Date "2020.05.12"]
[Round "4"]
[White "MarcoRiehle"]
[Black "Kotofeyca"]
[Result "1-0"]
[WhiteElo "2616"]
[BlackElo "2429"]
[TimeControl "180+1"]
[EndTime "10:39:26 PDT"]
[Termination "MarcoRiehle won by resignation"]

1. e4 {[%clk 0:03:00.9]} 1... c5 {[%clk 0:02:57.7]} 2. a3 {[%clk 0:03:00.3]}
2... d5 {[%clk 0:02:53.1]} 3. exd5 {[%clk 0:02:59.8]} 3... Qxd5 {[%clk 0:02:54]}
4. Nc3 {[%clk 0:02:59.5]} 4... Qd8 {[%clk 0:02:52.6]} 5. Nf3 {[%clk 0:02:59.7]}
5... Nf6 {[%clk 0:02:52.6]} 6. d4 {[%clk 0:02:59]} 6... cxd4 {[%clk 0:02:51.5]}
7. Qxd4 {[%clk 0:02:59.9]} 7... Qxd4 {[%clk 0:02:50.1]} 8. Nxd4 {[%clk
0:03:00.8]} 8... a6 {[%clk 0:02:50.5]} 9. Bf4 {[%clk 0:02:59.6]} 9... Nbd7
{[%clk 0:02:47.8]} 10. O-O-O {[%clk 0:03:00]} 10... e6 {[%clk 0:02:35]} 11. Nb3
{[%clk 0:02:45.6]} 11... Nb6 {[%clk 0:02:12.5]} 12. Be2 {[%clk 0:02:40.3]} 12...
Nbd5 {[%clk 0:02:12.4]} 13. Nxd5 {[%clk 0:02:39.9]} 13... Nxd5 {[%clk
0:02:12.2]} 14. Bg3 {[%clk 0:02:40.3]} 14... b5 {[%clk 0:01:58.9]} 15. Bf3
{[%clk 0:02:39]} 15... Bb7 {[%clk 0:01:59.2]} 16. Na5 {[%clk 0:02:38.8]} 16...
O-O-O {[%clk 0:01:45]} 17. Nxb7 {[%clk 0:02:38]} 17... Kxb7 {[%clk 0:01:44.7]}
18. Rhe1 {[%clk 0:02:38]} 18... Bc5 {[%clk 0:01:37.9]} 19. b4 {[%clk 0:02:35.5]}
19... Bf8 {[%clk 0:01:09.7]} 20. Bh4 {[%clk 0:02:22.9]} 20... Rd7 {[%clk
0:00:58.4]} 21. Bxd5+ {[%clk 0:02:21.9]} 21... exd5 {[%clk 0:00:58.1]} 22. Re8
{[%clk 0:02:22]} 22... g6 {[%clk 0:00:56.7]} 23. Rde1 {[%clk 0:02:02.3]} 23...
Bh6+ {[%clk 0:00:55.5]} 24. Kb1 {[%clk 0:02:00.3]} 24... Rxe8 {[%clk 0:00:54.9]}
25. Rxe8 {[%clk 0:02:01.2]} 25... Bf4 {[%clk 0:00:51.9]} 26. Bg3 {[%clk
0:01:57]} 26... Bxg3 {[%clk 0:00:51.1]} 27. hxg3 {[%clk 0:01:57.9]} 27... h5
{[%clk 0:00:51.4]} 28. Kc1 {[%clk 0:01:55.6]} 28... Kc6 {[%clk 0:00:42.8]} 29.
Kd2 {[%clk 0:01:53.6]} 29... Rd6 {[%clk 0:00:35.9]} 30. Re7 {[%clk 0:01:48.5]}
30... Rf6 {[%clk 0:00:35.1]} 31. f3 {[%clk 0:01:46]} 31... Kd6 {[%clk
0:00:34.5]} 32. Ra7 {[%clk 0:01:43]} 32... Ke5 {[%clk 0:00:34.5]} 33. Kd3 {[%clk
0:01:40.6]} 33... g5 {[%clk 0:00:34]} 34. Re7+ {[%clk 0:01:36.7]} 34... Kf5
{[%clk 0:00:33.3]} 35. c3 {[%clk 0:01:29.2]} 35... g4 {[%clk 0:00:28.8]} 36. f4
{[%clk 0:01:29]} 36... h4 {[%clk 0:00:28.4]} 37. Re5+ {[%clk 0:01:28]} 37... Kg6
{[%clk 0:00:28.6]} 38. Rg5+ {[%clk 0:01:27.3]} 38... Kh6 {[%clk 0:00:26.7]} 39.
Rxg4 {[%clk 0:01:21]} 39... hxg3 {[%clk 0:00:26.7]} 40. Kd4 {[%clk 0:01:20.9]}
40... Kh5 {[%clk 0:00:24.5]} 41. Rxg3 {[%clk 0:01:20.9]} 41... Rxf4+ {[%clk
0:00:24.3]} 42. Kxd5 {[%clk 0:01:21.3]} 42... Rf2 {[%clk 0:00:22.4]} 43. Kd4
{[%clk 0:00:45.9]} 43... Ra2 {[%clk 0:00:18]} 44. c4 {[%clk 0:00:44]} 44... bxc4
{[%clk 0:00:16.8]} 45. Kxc4 {[%clk 0:00:44.9]} 45... Kh4 {[%clk 0:00:15.7]} 46.
Rf3 {[%clk 0:00:35.9]} 46... f5 {[%clk 0:00:06.7]} 47. Rxf5 {[%clk 0:00:35.1]}
47... Rxa3 {[%clk 0:00:06.1]} 48. Ra5 {[%clk 0:00:31]} 48... Rg3 {[%clk
0:00:03.3]} 49. Rxa6 {[%clk 0:00:30.4]} 49... Rxg2 {[%clk 0:00:04.2]} 50. Rf6
{[%clk 0:00:29.6]} 50... Kg5 {[%clk 0:00:04]} 51. Rf1 {[%clk 0:00:29.2]} 51...
Rc2+ {[%clk 0:00:03.8]} 52. Kb5 {[%clk 0:00:29]} 52... Rb2 {[%clk 0:00:03.1]}
53. Kc5 {[%clk 0:00:28.9]} 53... Rc2+ {[%clk 0:00:03.1]} 54. Kb6 {[%clk
0:00:28.8]} 54... Rf2 {[%clk 0:00:03.3]} 55. Rxf2 {[%clk 0:00:28.2]} 1-0

[Event "*** Titled Tuesday Blitz"]
[Site "Chess.com"]
[Date "2020.05.12"]
[Round "4"]
[White "Alomaterapia"]
[Black "Oneofmyturns"]
[Result "1/2-1/2"]
[WhiteElo "2485"]
[BlackElo "2655"]
[TimeControl "180+1"]
[EndTime "10:39:27 PDT"]
[Termination "Game drawn - insufficient material"]

1. d4 {[%clk 0:03:00.9]} 1... Nf6 {[%clk 0:02:58.8]} 2. Bg5 {[%clk 0:03:00.3]}
2... d5 {[%clk 0:02:58.2]} 3. e3 {[%clk 0:02:59.6]} 3... c5 {[%clk 0:02:58.1]}
4. Bxf6 {[%clk 0:02:58.7]} 4... gxf6 {[%clk 0:02:57.9]} 5. Nf3 {[%clk
0:02:57.2]} 5... cxd4 {[%clk 0:02:54.5]} 6. exd4 {[%clk 0:02:57.5]} 6... Nc6
{[%clk 0:02:54.2]} 7. c4 {[%clk 0:02:57.8]} 7... e6 {[%clk 0:02:42.7]} 8. Nc3
{[%clk 0:02:57.2]} 8... dxc4 {[%clk 0:02:38.8]} 9. Bxc4 {[%clk 0:02:56.3]} 9...
Bg7 {[%clk 0:02:31.8]} 10. O-O {[%clk 0:02:51.5]} 10... O-O {[%clk 0:02:29.2]}
11. d5 {[%clk 0:02:51.9]} 11... Na5 {[%clk 0:02:28.6]} 12. Bd3 {[%clk
0:02:44.3]} 12... f5 {[%clk 0:02:25.7]} 13. dxe6 {[%clk 0:02:32.2]} 13... Bxe6
{[%clk 0:02:26.6]} 14. Re1 {[%clk 0:02:22.7]} 14... Rc8 {[%clk 0:01:56.3]} 15.
Qc2 {[%clk 0:02:21.9]} 15... Qf6 {[%clk 0:01:56.7]} 16. Rac1 {[%clk 0:02:18.7]}
16... Nc4 {[%clk 0:01:54.3]} 17. Bxc4 {[%clk 0:02:03.8]} 17... Rxc4 {[%clk
0:01:51.8]} 18. Ne5 {[%clk 0:01:55.6]} 18... Rcc8 {[%clk 0:01:29.2]} 19. Rcd1
{[%clk 0:01:53.7]} 19... Rfd8 {[%clk 0:01:26.7]} 20. f4 {[%clk 0:01:40.3]} 20...
Qh4 {[%clk 0:01:09.9]} 21. Qf2 {[%clk 0:01:31.3]} 21... Qxf2+ {[%clk 0:00:57.1]}
22. Kxf2 {[%clk 0:01:32.2]} 22... Bf8 {[%clk 0:00:54.1]} 23. Rxd8 {[%clk
0:00:43.7]} 23... Rxd8 {[%clk 0:00:55]} 24. Ke2 {[%clk 0:00:43.3]} 24... Bb4
{[%clk 0:00:41.3]} 25. a3 {[%clk 0:00:38.1]} 25... Bc5 {[%clk 0:00:39.2]} 26.
Rd1 {[%clk 0:00:36.6]} 26... Re8 {[%clk 0:00:39.3]} 27. b4 {[%clk 0:00:31.8]}
27... Bb6 {[%clk 0:00:32.5]} 28. Kf3 {[%clk 0:00:26.1]} 28... Rc8 {[%clk
0:00:28.5]} 29. Nd5 {[%clk 0:00:20.6]} 29... Bd8 {[%clk 0:00:23.3]} 30. Rd3
{[%clk 0:00:17.4]} 30... Kg7 {[%clk 0:00:20.5]} 31. h3 {[%clk 0:00:17]} 31...
Rc1 {[%clk 0:00:20.5]} 32. g4 {[%clk 0:00:16.9]} 32... fxg4+ {[%clk 0:00:20.2]}
33. hxg4 {[%clk 0:00:17.8]} 33... Rf1+ {[%clk 0:00:20.1]} 34. Kg2 {[%clk
0:00:18]} 34... Ra1 {[%clk 0:00:20.5]} 35. Kg3 {[%clk 0:00:17.5]} 35... Bxd5
{[%clk 0:00:19.3]} 36. Rxd5 {[%clk 0:00:17.5]} 36... Rxa3+ {[%clk 0:00:20.2]}
37. Kg2 {[%clk 0:00:16.6]} 37... Bc7 {[%clk 0:00:20.9]} 38. Nxf7 {[%clk
0:00:15]} 38... Bxf4 {[%clk 0:00:19.2]} 39. Rd7 {[%clk 0:00:15.2]} 39... Kg6
{[%clk 0:00:17.9]} 40. Rxb7 {[%clk 0:00:14.2]} 40... a6 {[%clk 0:00:16.2]} 41.
Nd8 {[%clk 0:00:10.9]} 41... h6 {[%clk 0:00:15.4]} 42. Ne6 {[%clk 0:00:10.6]}
42... Bd2 {[%clk 0:00:14.5]} 43. Rb6 {[%clk 0:00:07.3]} 43... Be3 {[%clk
0:00:12.8]} 44. Nc5+ {[%clk 0:00:06.9]} 44... Kg5 {[%clk 0:00:12.5]} 45. Rxa6
{[%clk 0:00:07.2]} 45... Rxa6 {[%clk 0:00:10.4]} 46. Nxa6 {[%clk 0:00:07.5]}
46... Kxg4 {[%clk 0:00:11.3]} 47. Nc5 {[%clk 0:00:07.1]} 47... h5 {[%clk
0:00:11.4]} 48. Nd3 {[%clk 0:00:06.4]} 48... h4 {[%clk 0:00:11.1]} 49. Nf2+
{[%clk 0:00:06.8]} 49... Bxf2 {[%clk 0:00:08.7]} 50. Kxf2 {[%clk 0:00:07.1]}
50... Kf5 {[%clk 0:00:08.3]} 51. b5 {[%clk 0:00:07.2]} 51... Ke6 {[%clk
0:00:08.8]} 52. b6 {[%clk 0:00:08]} 52... Kd6 {[%clk 0:00:09.2]} 53. b7 {[%clk
0:00:08.5]} 53... Kc7 {[%clk 0:00:09.8]} 54. Kf3 {[%clk 0:00:09.1]} 54... Kxb7
{[%clk 0:00:10.1]} 55. Kg4 {[%clk 0:00:09.6]} 55... h3 {[%clk 0:00:10]} 56. Kxh3
{[%clk 0:00:10.5]} 1/2-1/2